fUSD/lending_fUSD_20250904
["ID","MTS","AMOUNT","RATE_DAILY","PERIOD"]
[383574210,1757001054737,-400.0,0.00022253,2]
[383574211,1757001054747,-212.77,0.00022253,2]
[383574212,1757001054756,-400.0,0.00022253,2]
[383574213,1757001054767,-400.0,0.00022253,2]
[383574214,1757001054776,-400.0,0.00022253,2]
[383574215,1757001054785,-400.0,0.00022253,2]
[383574216,1757001054795,-400.0,0.00022253,2]
[383574217,1757001054805,-400.0,0.00022253,2]
[383574218,1757001054815,-409.71,0.00022253,2]
[383574219,1757001054825,-203.11,0.00022253,2]
[383574220,1757001054835,-400.0,0.00022253,2]
[383574221,1757001054845,-400.0,0.00022253,2]
[383574222,1757001054854,-400.0,0.00022253,2]
[383574223,1757001054864,-1391.51,0.00022253,2]
[383574224,1757001054874,-400.0,0.00022253,2]
[383574225,1757001054884,-547.99,0.00022253,2]
[383574226,1757001054895,-1000.0,0.00022253,2]
[383574227,1757001054904,-400.0,0.00022253,2]
[383574228,1757001054914,-400.0,0.00022253,2]
[383574229,1757001054924,-400.0,0.00022253,2]
[383574230,1757001054935,-459.65,0.00022253,2]
[383574231,1757001054948,-400.0,0.00022253,2]
[383574232,1757001054958,-400.0,0.00022253,2]
[383574233,1757001054968,-400.0,0.00022253,2]
[383574234,1757001054978,-400.0,0.00022253,2]
[383574235,1757001054989,-400.0,0.00022253,2]
[383574236,1757001054999,-400.0,0.00022253,2]
[383574237,1757001055009,-400.0,0.00022253,2]
[383574238,1757001055019,-400.0,0.00022253,2]
[383574239,1757001055029,-400.0,0.00022253,2]
[383574240,1757001055039,-400.0,0.00022253,2]
[383574241,1757001055049,-755.2,0.00022253,2]
[383574242,1757001055058,-400.0,0.00022253,2]
[383574243,1757001055068,-400.0,0.00022253,2]
[383574244,1757001055078,-400.0,0.00022253,2]
[383574245,1757001055088,-226.31984554,0.00022253,2]
[383574246,1757001055098,-400.0,0.00022253,2]
[383574247,1757001055107,-400.0,0.00022253,2]
[383574248,1757001055116,-400.0,0.00022253,2]
[383574249,1757001055126,-416.56,0.00022253,2]
[383574250,1757001055135,-400.0,0.00022253,2]
[383574251,1757001055145,-400.0,0.00022253,2]
[383574252,1757001055154,-400.0,0.00022253,2]
[383574253,1757001055164,-489.71,0.00022253,2]
[383574254,1757001055174,-400.0,0.00022253,2]
[383574255,1757001055184,-400.0,0.00022253,2]
[383574256,1757001055194,-400.0,0.00022253,2]
[383574257,1757001055204,-400.0,0.00022253,2]
[383574258,1757001055213,-400.0,0.00022253,2]
[383574259,1757001055222,-400.0,0.00022253,2]
[383574260,1757001055231,-400.0,0.00022253,2]
[383574261,1757001055241,-400.0,0.00022253,2]
[383574262,1757001055250,-400.0,0.00022253,2]
[383574263,1757001055259,-390.05408609,0.00022253,2]
[383574264,1757001055268,-400.0,0.00022253,2]
[383574265,1757001055278,-400.0,0.00022253,2]
[383574266,1757001055287,-400.0,0.00022253,2]
[383574267,1757001055297,-400.0,0.00022253,2]
[383574268,1757001055306,-400.0,0.00022253,2]
[383574269,1757001055316,-400.0,0.00022253,2]
[383574270,1757001055325,-400.0,0.00022253,2]
[383574271,1757001055335,-400.0,0.00022253,2]
[383574272,1757001055344,-400.0,0.00022253,2]
[383574273,1757001055354,-400.0,0.00022253,2]
[383574274,1757001055363,-400.0,0.00022253,2]
[383574275,1757001055373,-400.0,0.00022253,2]
[383574276,1757001055382,-315.34,0.00022253,2]
[383574277,1757001055391,-400.0,0.00022253,2]
[383574278,1757001055401,-400.0,0.00022253,2]
[383574279,1757001055410,-400.0,0.00022253,2]
[383574280,1757001055419,-400.0,0.00022253,2]
[383574281,1757001055429,-400.0,0.00022253,2]
[383574282,1757001055438,-400.0,0.00022253,2]
[383574283,1757001055447,-400.0,0.00022253,2]
[383574284,1757001055457,-400.0,0.00022253,2]
[383574285,1757001055466,-194.51,0.00022253,2]
[383574286,1757001055476,-400.0,0.00022253,2]
[383574287,1757001055485,-400.0,0.00022253,2]
[383574288,1757001055495,-400.0,0.00022253,2]
[383574289,1757001055504,-400.0,0.00022253,2]
[383574290,1757001055514,-400.0,0.00022253,2]
[383574291,1757001055524,-400.0,0.00022253,2]
[383574292,1757001055534,-400.0,0.00022253,2]
[383574293,1757001055543,-400.0,0.00022253,2]
[383574294,1757001055553,-400.0,0.00022253,2]
[383574295,1757001055562,-400.0,0.00022253,2]
[383574296,1757001055572,-438.98571546,0.00022253,2]
[383574297,1757001055581,-400.0,0.00022253,2]
[383574298,1757001055591,-253.46,0.00022253,2]
[383574299,1757001055600,-400.0,0.00022253,2]
[383574300,1757001055610,-400.0,0.00022253,2]
[383574301,1757001055619,-400.0,0.00022253,2]
[383574302,1757001055629,-400.0,0.00022253,2]
[383574303,1757001055639,-400.0,0.00022253,2]
[383574304,1757001055650,-400.0,0.00022253,2]
[383574305,1757001055659,-400.0,0.00022253,2]
[383574306,1757001055669,-403.76350124,0.00022253,2]
[383574307,1757001055679,-403.18716126,0.00022253,2]
[383574308,1757001055688,-400.0,0.00022253,2]
[383574309,1757001055699,-400.0,0.00022253,2]
[383574310,1757001055709,-400.0,0.00022253,2]
[383574311,1757001055719,-400.0,0.00022253,2]
[383574312,1757001055732,-400.0,0.00022253,2]
[383574313,1757001055741,-400.0,0.00022253,2]
[383574314,1757001055751,-441.90030764,0.00022253,2]
[383574315,1757001055761,-400.0,0.00022253,2]
[383574316,1757001055772,-400.0,0.00022253,2]
[383574317,1757001055783,-498.69,0.00022253,2]
[383574318,1757001055793,-400.0,0.00022253,2]
[383574319,1757001055804,-400.0,0.00022253,2]
[383574320,1757001055814,-400.0,0.00022253,2]
[383574321,1757001055824,-400.0,0.00022253,2]
[383574322,1757001055835,-434.37751373,0.00022253,2]
[383574323,1757001055844,-400.0,0.00022253,2]
[383574324,1757001055854,-400.0,0.00022253,2]
[383574325,1757001055865,-400.0,0.00022253,2]
[383574326,1757001055876,-400.0,0.00022254,2]
[383574327,1757001055887,-400.0,0.00022254,2]
[383574328,1757001055896,-400.0,0.00022254,2]
[383574329,1757001055906,-400.0,0.00022254,2]
[383574330,1757001055915,-458.22,0.00022254,2]
[383574331,1757001055926,-400.0,0.00022254,2]
[383574332,1757001055935,-400.0,0.00022254,2]
[383574333,1757001055945,-400.0,0.00022254,2]
[383574334,1757001055955,-400.0,0.00022254,2]
[383574335,1757001055963,-400.0,0.00022254,2]
[383574336,1757001055972,-400.0,0.00022254,2]
[383574337,1757001055980,-400.0,0.00022254,2]
[383574338,1757001055989,-400.0,0.00022254,2]
[383574339,1757001055997,-403.49352411,0.00022254,2]
[383574340,1757001056006,-400.0,0.00022254,2]
[383574341,1757001056015,-400.0,0.00022254,2]
[383574342,1757001056024,-400.0,0.00022254,2]
[383574343,1757001056033,-400.0,0.00022254,2]
[383574344,1757001056042,-400.0,0.00022254,2]
[383574345,1757001056050,-400.0,0.00022254,2]
[383574346,1757001056058,-400.0,0.00022254,2]
[383574347,1757001056066,-400.0,0.00022254,2]
[383574348,1757001056075,-400.0,0.00022254,2]
[383574349,1757001056082,-400.0,0.00022254,2]
[383574350,1757001056089,-400.0,0.00022254,2]
[383574351,1757001056095,-413.87,0.00022254,2]
[383574352,1757001056102,-400.0,0.00022254,2]
[383574353,1757001056108,-209.44684301,0.00022254,2]
[383574354,1757001056115,-400.0,0.00022254,2]
[383574355,1757001056122,-400.0,0.00022254,2]
[383574356,1757001056129,-400.0,0.00022254,2]
[383574357,1757001056139,-400.0,0.00022254,2]
[383574358,1757001056149,-261.21136051,0.00022254,2]
[383574359,1757001056158,-400.0,0.00022254,2]
[383574360,1757001056167,-400.0,0.00022254,2]
[383574361,1757001056178,-400.0,0.00022254,2]
[383574362,1757001056188,-400.0,0.00022254,2]
[383574363,1757001056197,-474.16,0.00022254,2]
[383574364,1757001056207,-400.0,0.00022254,2]
[383574365,1757001056216,-500.0,0.00022254,2]
[383574366,1757001056225,-400.0,0.00022254,2]
[383574367,1757001056235,-400.0,0.00022254,2]
[383574368,1757001056245,-400.0,0.00022254,2]
[383574369,1757001056255,-379.87,0.00022254,2]
[383574370,1757001056265,-400.0,0.00022254,2]
[383574371,1757001056275,-633.68124317,0.00022254,2]
[383574372,1757001056286,-400.0,0.00022254,2]
[383574373,1757001056296,-400.0,0.00022254,2]
[383574374,1757001056305,-401.49288166,0.00022254,2]
[383574375,1757001056315,-400.0,0.00022254,2]
[383574376,1757001056325,-404.43870626,0.00022254,2]
[383574377,1757001056335,-400.0,0.00022254,2]
[383574378,1757001056345,-400.0,0.00022254,2]
[383574379,1757001056355,-400.0,0.00022254,2]
[383574380,1757001056364,-467.11881044,0.00022254,2]
[383574381,1757001056375,-400.0,0.00022254,2]
[383574382,1757001056384,-400.0,0.00022254,2]
[383574383,1757001056394,-400.0,0.00022254,2]
[383574384,1757001056403,-405.20108175,0.00022254,2]
[383574385,1757001056413,-400.0,0.00022254,2]
[383574386,1757001056422,-400.0,0.00022254,2]
[383574387,1757001056432,-400.0,0.00022254,2]
[383574388,1757001056442,-400.0,0.00022254,2]
[383574389,1757001056451,-400.0,0.00022254,2]
[383574390,1757001056461,-268.2193443,0.00022254,2]
[383574391,1757001056471,-400.0,0.00022254,2]
[383574392,1757001056480,-400.0,0.00022254,2]
[383574393,1757001056489,-431.3729198,0.00022254,2]
[383574394,1757001056499,-407.65628942,0.00022254,2]
[383574395,1757001056509,-455.85,0.00022254,2]
[383574396,1757001056518,-400.0,0.00022254,2]
[383574397,1757001056527,-400.0,0.00022254,2]
[383574398,1757001056537,-198.1,0.00022254,2]
[383574399,1757001056547,-400.0,0.00022254,2]
[383574400,1757001056556,-400.0,0.00022254,2]
[383574401,1757001056566,-400.0,0.00022254,2]
[383574402,1757001056576,-400.0,0.00022254,2]
[383574403,1757001056585,-400.0,0.00022254,2]
[383574404,1757001056595,-424.8152118,0.00022254,2]
[383574405,1757001056604,-400.0,0.00022254,2]
[383574406,1757001056614,-400.0,0.00022254,2]
[383574407,1757001056623,-409.54113152,0.00022254,2]
[383574408,1757001056632,-400.0,0.00022254,2]
[383574409,1757001056642,-432.45,0.00022254,2]
[383574410,1757001056652,-272.23,0.00022254,2]
[383574411,1757001056661,-400.0,0.00022254,2]
[383574412,1757001056672,-239.82,0.00022254,2]
[383574413,1757001056681,-400.0,0.00022254,2]
[383574414,1757001056690,-403.99210231,0.00022254,2]
[383574415,1757001056699,-412.91090071,0.00022254,2]
[383574416,1757001056709,-400.0,0.00022254,2]
[383574417,1757001056720,-498.66,0.00022254,2]
[383574418,1757001056734,-400.0,0.00022254,2]
[383574419,1757001056743,-400.0,0.00022254,2]
[383574420,1757001056753,-400.0,0.00022254,2]
[383574421,1757001056763,-400.0,0.00022254,2]
[383574422,1757001056773,-400.0,0.00022254,2]
[383574423,1757001056783,-400.0,0.00022254,2]
[383574424,1757001056793,-400.0,0.00022254,2]
[383574425,1757001056805,-400.0,0.00022254,2]
[383574426,1757001056815,-400.0,0.00022254,2]
[383574427,1757001056824,-400.0,0.00022254,2]
[383574428,1757001056835,-403.8196619,0.00022254,2]
[383574429,1757001056845,-400.0,0.00022254,2]
[383574430,1757001056855,-400.0,0.00022254,2]
[383574431,1757001056864,-400.0,0.00022254,2]
[383574432,1757001056874,-400.0,0.00022254,2]
[383574433,1757001056886,-400.0,0.00022254,2]
[383574434,1757001056898,-400.0,0.00022254,2]
[383574435,1757001056907,-400.0,0.00022254,2]
[383574436,1757001056917,-457.58,0.00022254,2]
[383574437,1757001056927,-400.0,0.00022254,2]
[383574438,1757001056937,-400.0,0.00022254,2]
[383574439,1757001056946,-400.0,0.00022254,2]
[383574440,1757001056957,-241.02557758,0.00022254,2]
[383574441,1757001056968,-400.0,0.00022254,2]
[383574442,1757001056977,-400.0,0.00022254,2]
[383574443,1757001056987,-400.0,0.00022254,2]
[383574444,1757001056996,-400.0,0.00022254,2]
[383574445,1757001057006,-400.0,0.00022254,2]
[383574446,1757001057015,-400.0,0.00022254,2]
[383574447,1757001057025,-403.5902008,0.00022254,2]
[383574448,1757001057035,-400.0,0.00022254,2]
[383574449,1757001057045,-400.0,0.00022254,2]
[383574450,1757001057054,-400.0,0.00022254,2]
[383574451,1757001057064,-400.78,0.00022254,2]
[383574452,1757001057073,-400.0,0.00022254,2]
[383574453,1757001057083,-400.0,0.00022254,2]
[383574454,1757001057092,-400.0,0.00022254,2]
[383574455,1757001057102,-400.0,0.00022254,2]
[383574456,1757001057111,-400.0,0.00022254,2]
[383574457,1757001057121,-400.0,0.00022254,2]
[383574458,1757001057130,-400.0,0.00022254,2]
[383574459,1757001057140,-425.07345381,0.00022254,2]
[383574460,1757001057149,-400.0,0.00022254,2]
[383574461,1757001057158,-447.09,0.00022254,2]
[383574462,1757001057168,-360.14268,0.00022255,2]
[383574463,1757001057179,-400.0,0.00022255,2]
[383574464,1757001057189,-400.0,0.00022255,2]
[383574465,1757001057199,-402.55244459,0.00022255,2]
[383574466,1757001057209,-400.0,0.00022255,2]
[383574467,1757001057218,-401.47658901,0.00022255,2]
[383574468,1757001057228,-400.0,0.00022255,2]
[383574469,1757001057238,-254.15789946,0.00022273,2]
[383574470,1757001057248,-500.0,0.00022273,2]
[383574471,1757001057258,-500.0,0.00022273,2]
[383574472,1757001057268,-500.91207354,0.00022273,2]
[383574473,1757001057278,-500.0,0.00022273,2]
[383574474,1757001057288,-501.10794781,0.00022273,2]
[383574475,1757001057298,-167.08678272,0.00022273,2]
[383574476,1757001057308,-244.72,0.00022307,2]
[383574477,1757001057318,-714.0,0.0002237,2]
[383574478,1757001057328,-150.0,0.00022389,2]
[383574479,1757001057338,-150.0,0.00022389,2]
[383574480,1757001057347,-150.0,0.00022389,2]
[383574481,1757001057358,-194.59019616,0.00022389,2]
[383574482,1757001057369,-500.0,0.0002239,2]
[383574483,1757001057380,-500.0,0.0002239,2]
[383574484,1757001057390,-500.0,0.0002239,2]
[383574485,1757001057401,-500.0,0.0002239,2]
[383574486,1757001057412,-306.66490922,0.00022428,2]
[383574487,1757001057422,-196.142,0.0002245,2]
[383574488,1757001057431,-249.071,0.0002245,2]
[383574489,1757001057441,-196.575,0.0002245,2]
[383574490,1757001057451,-151.088,0.0002245,2]
[383574491,1757001057461,-150.0,0.0002245,2]
[383574492,1757001057470,-150.0,0.0002245,2]
[383574493,1757001057480,-150.0,0.0002245,2]
[383574494,1757001057490,-578.55576758,0.00022521,2]
[383574495,1757001057499,-809.6462611,0.00022521,2]
[383574496,1757001057509,-1000.0,0.00022521,2]
[383574497,1757001057519,-743.4386402,0.00022521,2]
[383574498,1757001057528,-1043.82301501,0.00022521,2]
[383574499,1757001057538,-500.0,0.00022521,2]
[383574500,1757001057547,-1000.0,0.00022521,2]
[383574501,1757001057557,-500.0,0.00022521,2]
[383574502,1757001057567,-1000.0,0.00022521,2]
[383574503,1757001057576,-1000.0,0.00022521,2]
[383574504,1757001057586,-1000.0,0.00022521,2]
[383574505,1757001057596,-512.07798509,0.00022521,2]
[383574506,1757001057605,-500.0,0.00022523,2]
[383574507,1757001057615,-500.0,0.00022523,2]
[383574508,1757001057625,-1258.0,0.00022523,2]
[383574509,1757001057635,-3462.653,0.00022523,2]
[383574510,1757001057666,-924.0,0.00022523,2]
[383574511,1757001057683,-2035.0,0.00022523,2]
[383574512,1757001057693,-1577.0,0.00022523,2]
[383574513,1757001057702,-588.453,0.00022523,2]
[383574514,1757001057712,-624.723,0.00022523,2]
[383574515,1757001057722,-1334.873,0.00022523,2]
[383574516,1757001057734,-825.0,0.00022523,2]
[383574517,1757001057743,-851.814,0.00022523,2]
[383574518,1757001057753,-4163.0,0.00022523,2]
[383574519,1757001057762,-6312.031,0.00022523,2]
[383574520,1757001057773,-21149.0,0.00022523,2]
[383574521,1757001057783,-502.31,0.00022526,2]
[383574522,1757001057794,-500.0,0.00022526,2]
[383574523,1757001057807,-500.0,0.00022527,2]
[383574524,1757001057818,-500.0,0.00022527,2]
[383574525,1757001057827,-500.0,0.00022527,2]
[383574526,1757001057836,-604.32853145,0.00022527,2]
[383574527,1757001057847,-400.0,0.00022527,2]
[383574528,1757001057856,-400.0,0.00022527,2]
[383574529,1757001057865,-274.9,0.00022527,2]
[383574530,1757001057875,-400.0,0.00022527,2]
[383574531,1757001057884,-400.0,0.00022527,2]
[383574532,1757001057894,-400.0,0.00022527,2]
[383574533,1757001057904,-400.0,0.00022527,2]
[383574534,1757001057914,-239.21624917,0.00022527,2]
[383574535,1757001057923,-477.16,0.00022527,2]
[383574536,1757001057933,-400.0,0.00022527,2]
[383574537,1757001057944,-336.7,0.00022527,2]
[383574538,1757001057953,-404.17734058,0.00022527,2]
[383574539,1757001057963,-400.0,0.00022527,2]
[383574540,1757001057972,-198.21,0.00022527,2]
[383574541,1757001057982,-356.3,0.00022527,2]
[383574542,1757001057991,-400.0,0.00022527,2]
[383574543,1757001058001,-400.0,0.00022527,2]
[383574544,1757001058011,-400.0,0.00022527,2]
[383574545,1757001058020,-400.0,0.00022527,2]
[383574546,1757001058030,-400.0,0.00022527,2]
[383574547,1757001058040,-400.0,0.00022527,2]
[383574548,1757001058049,-400.0,0.00022527,2]
[383574549,1757001058059,-412.5435798,0.00022527,2]
[383574550,1757001058069,-439.41,0.00022527,2]
[383574551,1757001058079,-400.0,0.00022527,2]
[383574552,1757001058088,-400.0,0.00022527,2]
[383574553,1757001058098,-400.0,0.00022527,2]
[383574554,1757001058108,-400.0,0.00022527,2]
[383574555,1757001058118,-400.0,0.00022527,2]
[383574556,1757001058128,-400.0,0.00022527,2]
[383574557,1757001058137,-400.0,0.00022527,2]
[383574558,1757001058147,-400.0,0.00022527,2]
[383574559,1757001058157,-784.71,0.00022527,2]
[383574560,1757001058166,-400.0,0.00022527,2]
[383574561,1757001058176,-400.0,0.00022527,2]
[383574562,1757001058186,-400.0,0.00022527,2]
[383574563,1757001058196,-400.0,0.00022527,2]
[383574564,1757001058206,-400.0,0.00022527,2]
[383574565,1757001058216,-400.0,0.00022527,2]
[383574566,1757001058225,-400.0,0.00022527,2]
[383574567,1757001058236,-317.09260397,0.00022527,2]
[383574568,1757001058246,-2410.78,0.00022527,2]
[383574569,1757001058256,-400.0,0.00022527,2]
[383574570,1757001058266,-1000.0,0.00022527,2]
[383574571,1757001058275,-224.81,0.00022527,2]
[383574572,1757001058285,-400.0,0.00022527,2]
[383574573,1757001058295,-400.0,0.00022527,2]
[383574574,1757001058305,-400.0,0.00022527,2]
[383574575,1757001058315,-400.0,0.00022527,2]
[383574576,1757001058325,-1192.72,0.00022527,2]
[383574577,1757001058335,-400.0,0.00022527,2]
[383574578,1757001058345,-400.0,0.00022527,2]
[383574579,1757001058355,-1410.67,0.00022527,2]
[383574580,1757001058364,-400.0,0.00022527,2]
[383574581,1757001058373,-400.0,0.00022527,2]
[383574582,1757001058383,-497.33,0.00022527,2]
[383574583,1757001058392,-400.0,0.00022527,2]
[383574584,1757001058402,-512.94645619,0.00022527,2]
[383574585,1757001058412,-400.0,0.00022527,2]
[383574586,1757001058423,-269.91434651,0.00022527,2]
[383574587,1757001058433,-405.63490346,0.00022527,2]
[383574588,1757001058444,-298.85,0.00022527,2]
[383574589,1757001058454,-400.0,0.00022527,2]
[383574590,1757001058466,-400.0,0.00022527,2]
[383574591,1757001058476,-1391.51,0.00022527,2]
[383574592,1757001058485,-400.0,0.00022527,2]
[383574593,1757001058495,-400.0,0.00022527,2]
[383574594,1757001058505,-400.0,0.00022527,2]
[383574595,1757001058517,-468.73,0.00022527,2]
[383574596,1757001058528,-459.65,0.00022527,2]
[383574597,1757001058539,-400.0,0.00022527,2]
[383574598,1757001058549,-403.56613285,0.00022527,2]
[383574599,1757001058559,-400.0,0.00022527,2]
[383574600,1757001058569,-400.0,0.00022527,2]
[383574601,1757001058580,-400.0,0.00022527,2]
[383574602,1757001058589,-400.0,0.00022527,2]
[383574603,1757001058599,-400.0,0.00022527,2]
[383574604,1757001058610,-755.2,0.00022527,2]
[383574605,1757001058620,-400.0,0.00022527,2]
[383574606,1757001058630,-400.0,0.00022527,2]
[383574607,1757001058640,-400.0,0.00022527,2]
[383574608,1757001058650,-400.0,0.00022527,2]
[383574609,1757001058660,-400.0,0.00022527,2]
[383574610,1757001058669,-400.0,0.00022527,2]
[383574611,1757001058680,-400.0,0.00022527,2]
[383574612,1757001058690,-400.0,0.00022527,2]
[383574613,1757001058700,-400.0,0.00022527,2]
[383574614,1757001058710,-400.0,0.00022527,2]
[383574615,1757001058721,-400.0,0.00022527,2]
[383574616,1757001058734,-400.0,0.00022527,2]
[383574617,1757001058745,-239.2,0.00022527,2]
[383574618,1757001058756,-400.0,0.00022527,2]
[383574619,1757001058766,-400.0,0.00022527,2]
[383574620,1757001058777,-400.0,0.00022527,2]
[383574621,1757001058787,-400.0,0.00022527,2]
[383574622,1757001058796,-400.0,0.00022527,2]
[383574623,1757001058809,-400.0,0.00022527,2]
[383574624,1757001058819,-400.0,0.00022527,2]
[383574625,1757001058829,-400.0,0.00022527,2]
[383574626,1757001058839,-400.0,0.00022527,2]
[383574627,1757001058849,-400.0,0.00022527,2]
[383574628,1757001058860,-400.0,0.00022527,2]
[383574629,1757001058872,-400.0,0.00022527,2]
[383574630,1757001058883,-400.0,0.00022527,2]
[383574631,1757001058894,-400.0,0.00022527,2]
[383574632,1757001058907,-400.0,0.00022527,2]
[383574633,1757001058918,-400.0,0.00022527,2]
[383574634,1757001058939,-400.0,0.00022527,2]
[383574635,1757001058950,-400.0,0.00022527,2]
[383574636,1757001058960,-400.0,0.00022527,2]
[383574637,1757001058971,-400.0,0.00022527,2]
[383574638,1757001058981,-400.0,0.00022527,2]
[383574639,1757001058992,-498.69,0.00022527,2]
[383574640,1757001059002,-400.0,0.00022527,2]
[383574641,1757001059012,-400.0,0.00022527,2]
[383574642,1757001059022,-400.0,0.00022528,2]
[383574643,1757001059032,-400.0,0.00022528,2]
[383574644,1757001059042,-400.0,0.00022528,2]
[383574645,1757001059053,-400.0,0.00022528,2]
[383574646,1757001059063,-400.0,0.00022528,2]
[383574647,1757001059073,-400.0,0.00022528,2]
[383574648,1757001059083,-252.33182785,0.00022528,2]
[383574649,1757001059093,-400.0,0.00022528,2]
[383574650,1757001059102,-469.13182773,0.00022528,2]
[383574651,1757001059112,-400.0,0.00022528,2]
[383574652,1757001059122,-400.0,0.00022528,2]
[383574653,1757001059132,-400.0,0.00022528,2]
[383574654,1757001059142,-400.0,0.00022528,2]
[383574655,1757001059153,-231.47057148,0.00022528,2]
[383574656,1757001059163,-400.0,0.00022528,2]
[383574657,1757001059173,-400.0,0.00022528,2]
[383574658,1757001059183,-400.0,0.00022528,2]
[383574659,1757001059193,-400.0,0.00022528,2]
[383574660,1757001059206,-400.0,0.00022528,2]
[383574661,1757001059215,-400.0,0.00022528,2]
[383574662,1757001059225,-278.07509044,0.00022528,2]
[383574663,1757001059235,-400.0,0.00022528,2]
[383574664,1757001059246,-400.0,0.00022528,2]
[383574665,1757001059255,-400.0,0.00022528,2]
[383574666,1757001059265,-400.0,0.00022528,2]
[383574667,1757001059276,-400.0,0.00022528,2]
[383574668,1757001059287,-400.0,0.00022528,2]
[383574669,1757001059298,-400.0,0.00022528,2]
[383574670,1757001059310,-400.0,0.00022528,2]
[383574671,1757001059320,-400.0,0.00022528,2]
[383574672,1757001059330,-400.0,0.00022528,2]
[383574673,1757001059341,-400.0,0.00022528,2]
[383574674,1757001059351,-413.33236868,0.00022528,2]
[383574675,1757001059361,-400.0,0.00022528,2]
[383574676,1757001059371,-400.0,0.00022528,2]
[383574677,1757001059382,-400.0,0.00022528,2]
[383574678,1757001059392,-400.0,0.00022528,2]
[383574679,1757001059402,-400.0,0.00022528,2]
[383574680,1757001059412,-352.9850461,0.00022528,2]
[383574681,1757001059422,-451.19,0.00022528,2]
[383574682,1757001059433,-400.0,0.00022528,2]
[383574683,1757001059443,-400.0,0.00022528,2]
[383574684,1757001059452,-400.0,0.00022528,2]
[383574685,1757001059463,-400.0,0.00022528,2]
[383574686,1757001059473,-400.0,0.00022528,2]
[383574687,1757001059482,-400.0,0.00022529,2]
[383574688,1757001059492,-400.0,0.00022529,2]
[383574689,1757001059502,-900.0,0.000226,4]
[383574690,1757001059513,-5839.90717645,0.00022648,2]
[383574691,1757001059524,-8238.01105215,0.00022649,2]
[383574692,1757001059535,-500.0,0.0002265,2]
[383574693,1757001059544,-600.0,0.00022658,2]
[383574694,1757001059554,-500.0,0.00022664,2]
[383574695,1757001059564,-500.0,0.00022664,2]
[383574696,1757001059574,-500.0,0.00022664,2]
[383574697,1757001059584,-900.0,0.00022739,8]
[383574698,1757001059789,-900.0,0.00022739,8]
[383574699,1757001059799,-900.0,0.00022739,8]
[383574700,1757001059809,-900.0,0.00022739,8]
[383574701,1757001059819,-900.0,0.00022739,8]
[383574702,1757001059829,-900.0,0.00022739,8]
[383574703,1757001059838,-900.0,0.00022739,8]
[383574704,1757001059848,-921.88554369,0.00022739,8]
[383574705,1757001059858,-2619.65655151,0.00022775,2]
[383574706,1757001059867,-500.0,0.00022801,2]
[383574707,1757001059877,-500.0,0.00022801,2]
[383574708,1757001059887,-500.0,0.00022801,2]
[383574709,1757001059896,-400.0,0.00022801,2]